Cogmind - Beta 14 @@@ ROGUE MODE // 2024.11.12 @ 13:00:09 Player: Fangrelle Result: Destroyed by G-47 Trooper with Particle Gun Performance ------------- Evolutions (2) 1000 Regions Visited (4) 800 Robots Destroyed (132) 660 Value Destroyed (3560) 3560 Prototype IDs (10) 200 Alien Tech Used (0) 0 Bonus (570) 570 TOTAL SCORE: 6790 Bonus ------- High Alert Combat Kills 493 Follower Combat Kills 77 Cogmind --------- Core Integrity 0/550 Matter 270/300 Energy 81/100 System Corruption 1% Temperature Cool (20) Movement Core (1450) Ox28 Location -8/Materials Parts ------- > --- POWER (1) -------- (None) > --- PROPULSION (5) --- (None) > --- UTILITY (3) ------ Huge Storage Unit Hacking Suite > --- WEAPON (2) ------- Advanced Beam Rifle Assault Cannon > --- INVENTORY (25) --- Light Ion Engine Advanced Weight Redist. System Signal Interpreter Improved Targeting Computer Advanced Targeting Computer Hacking Suite Hacking Suite Advanced Beam Rifle Rocket Launcher Rocket Launcher Improved Datajack Remote Datajack Remote Datajack Mining Laser Plasma Cutter Greatsword Peak State ------------ > --- POWER ------------ Light Angular Momentum Engine > --- PROPULSION ------- Light Treads Armored Wheel Armored Wheel Aerolev Unit > --- UTILITY ---------- Advanced Heat Sink Huge Storage Unit Hacking Suite > --- WEAPON ----------- Spread Laser Assault Cannon > --- INVENTORY -------- Improved Hover Unit Advanced Weight Redist. System Signal Interpreter Improved Targeting Computer Advanced Targeting Computer Improved Melee Analysis Suite Improved Melee Analysis Suite Light Armor Plating Hacking Suite Hacking Suite Spread Laser Assault Cannon Bore Cannon Rocket Launcher Rocket Launcher Improved Datajack Remote Datajack Remote Datajack Mining Laser Plasma Cutter Greatsword Greatsword [Rating: 35] Favorites ----------- Power Heavy Ion Engine Engine Heavy Ion Engine Propulsion Light Treads Treads Light Treads Leg Aluminum Leg Wheel Armored Wheel Hover Unit Aerolev Unit Flight Unit Improved Flight Unit Utility Large Storage Unit Device Heat Sink Storage Large Storage Unit Processor Improved Targeting Computer Hackware Hacking Suite Weapon Spread Laser Energy Gun Spread Laser Ballistic Gun Assault Rifle Ballistic Cannon Assault Cannon Launcher Grenade Launcher Special Weapon Mining Laser Slashing Weapon Greatsword Build | -11 -10 -9 -9 -8 ------- Run | Yrd Mat Mat Min Mat Slots Evolved 4 | . . 2 . 2 Power . | . . . . . Propulsion 3 | . . 2 . 1 Utility 1 | . . . . 1 Weapon . | . . . . . Parts Attached 100 | . 26 37 . 37 Power 5 | . . 2 . 3 Engine 5 | . . 2 . 3 Core . | . . . . . Reactor . | . . . . . Propulsion 33 | . 7 15 . 11 Treads 23 | . 4 11 . 8 Leg . | . . . . . Wheel 6 | . 3 3 . . Hover 3 | . . . . 3 Flight 1 | . . 1 . . Utility 8 | . 3 1 . 4 Device 3 | . 2 . . 1 Storage 2 | . 1 . . 1 Processor 2 | . . 1 . 1 Hackware 1 | . . . . 1 Protection . | . . . . . Artifact . | . . . . . Weapon 54 | . 16 19 . 19 Energy Gun 37 | . 11 16 . 10 Energy Cannon . | . . . . . Ballistic Gun 3 | . 2 1 . . Ballistic Cannon 6 | . . . . 6 Launcher 1 | . 1 . . . Special Weapon 5 | . 2 2 . 1 Impact Weapon . | . . . . . Slashing Weapon 2 | . . . . 2 Piercing Weapon . | . . . . . Special Melee Weapon . | . . . . . Unidentified Prototypes 9 | . . 6 . 3 Corrupted Parts 1 | . . . . 1 System Corruption 1 | . . . . 1 Parts Lost 22 | . . 2 . 20 Power 2 | . . . . 2 Propulsion 11 | . . . . 11 Utility 2 | . . . . 2 Weapon 7 | . . 2 . 5 Highest Loss Streak 7 | . . 1 . 7 To Critical Strikes . | . . . . . Average Slot Usage (%) 94 | . 99 97 100 82 Engine 11 | . 14 11 11 8 Treads 26 | . 26 34 22 13 Wheel 8 | . 1 7 22 12 Hover 1 | . . . . 4 Device 5 | . 13 2 . 5 Storage 11 | . 14 11 11 9 Processor 5 | . . 8 11 4 Hackware 1 | . . . . 7 Energy Gun 17 | . 18 21 22 9 Ballistic Gun 1 | . 7 . . . Ballistic Cannon 1 | . . . . 7 Peak Build Rating 35 | 6 11 20 20 35 Average Rating 18 | 6 9 17 20 27 On Entrance 12 | 6 6 11 20 20 Naked Turns . | . . . . . Heaviest Build 98 | 13 34 34 34 98 Greatest Support 86 | 20 40 86 24 80 Greatest Overweight (x) 32 | . 2 10 1 32 Average Overweight (x) 1 | . . . 1 4 Largest Inventory Capacity 25 | 8 15 15 15 25 Average Capacity 17 | 8 14 15 15 24 Most Carried 25 | 7 15 15 14 25 Average Carried 15 | 6 12 14 13 22 Final Capacity 25 | 8 15 15 15 25 Final Carried 17 | 7 14 14 14 17 Class Distribution -------------------- 86% | Mutant 13% | Scavenger-Mutant Dominant Class ---------------- Mutant | -10/Materials Mutant | -9/Materials Mutant | -9/Mines Scavenger-Mutant | -8/Materials Resources | -11 -10 -9 -9 -8 ----------- Run | Yrd Mat Mat Min Mat Matter Collected 1899 | 200 414 465 . 820 Remotely 364 | . 364 . . . Salvage Created 3381 | 88 415 1309 110 1459 Parts 218 | 5 34 93 9 77 Haulers Intercepted 6 | . 1 2 . 3 Recyclers Shooed 2 | . 1 1 . . Parts Field Recycled . | . . . . . Retrieved Matter . | . . . . . Parts Self-Destructed . | . . . . . Prevented . | . . . . . Kills | -11 -10 -9 -9 -8 ------- Run | Yrd Mat Mat Min Mat Combat Hostiles Destroyed 100 | . 13 40 6 41 Melee 4 | . . . . 4 Guns 81 | . 13 40 6 22 Cannons 14 | . . . . 14 AOE 1 | . . . . 1 Classes Destroyed 13 | 2 5 5 . 1 Worker 4 | . . 2 . 2 Builder 3 | . . 1 . 2 Tunneler 1 | 1 . . . . Hauler 6 | . 1 2 . 3 Recycler 1 | 1 . . . . Mechanic 2 | . . 1 . 1 Operator 4 | . 1 2 . 1 Watcher 11 | . 2 5 . 4 Swarmer 32 | . 6 12 3 11 Grunt 48 | . 7 18 3 20 Duelist 4 | . . 1 . 3 Sentry 15 | . . 9 . 6 Hunter 1 | . . . . 1 Best Kill Streak 6 | 2 6 6 3 6 Combat Bots Only 6 | . 6 5 3 6 Max Kills in Single Turn 2 | 1 1 2 2 2 Gunslinging 1 | . . 1 . . Exploded 1 | . . . . 1 Melee 1 | . . . . 1 Uniques/NPCs Destroyed . | . . . . . Combat | -11 -10 -9 -9 -8 -------- Run | Yrd Mat Mat Min Mat Hostile Shots Fired 443 | . 68 127 13 235 Missed 114 | . 26 24 4 60 Damage Taken 4585 | . 435 1167 107 2876 Core 738 | . 75 89 22 552 Absorbed by Shields . | . . . . . Regen/Repaired (Parts) 480 | . 100 380 . . Core Remaining (%) 80 | 100 70 . 72 . Volleys Fired 318 | 5 70 93 9 141 Largest 2 | 2 2 2 2 2 Hottest 130 | 90 130 130 130 130 Shots Fired 593 | 10 119 179 18 267 Gun 459 | 10 98 175 18 158 Cannon 108 | . . . . 108 Launcher 1 | . 1 . . . Special 25 | . 20 4 . 1 Kinetic 186 | . 78 . . 108 Thermal 374 | 10 36 170 18 140 Explosive 1 | . 1 . . . Electromagnetic 32 | . 4 9 . 19 Robot Hit Streak 33 | 5 8 33 7 15 Robot Miss Streak 11 | 4 7 11 7 8 Penetration Max . | . . . . . Secondary Targets 5 | . 1 4 . . Max Gunslinging Chain 1 | . 1 1 . . Shots Hit Robots 451 | 5 62 147 16 221 Core Hits 475 | 3 36 203 21 212 Critical Kills 1 | . . . . 1 Critical Parts Destroyed . | . . . . . Critical Strikes 8 | 2 . . . 6 Burn 3 | 2 . . . 1 Destroy 1 | . . . . 1 Blast 3 | . . . . 3 Sever 1 | . . . . 1 Melee Attacks 12 | . . . . 12 Impact . | . . . . . Slashing 12 | . . . . 12 Piercing . | . . . . . Sneak Attacks . | . . . . . Combat Hostiles . | . . . . . Follow-up Attacks . | . . . . . Damage Inflicted 7553 | 59 824 2222 199 4249 Guns 5259 | 59 824 2137 194 2045 Cannons 1713 | . . . . 1713 Explosions 158 | . . 67 . 91 Melee 394 | . . . . 394 Ramming 29 | . . 18 5 6 Kinetic 2346 | . 633 . . 1713 Thermal 4449 | 59 152 2137 194 1907 Explosive . | . . . . . Electromagnetic 335 | . 39 67 . 229 Impact . | . . . . . Slashing 394 | . . . . 394 Piercing . | . . . . . Highest Corruption 1 | . . . . 1 Average Corruption 1 | . . . . 1 Corruption Purged . | . . . . . Corruption Blocked . | . . . . . Effects 9 | . . . . 9 Message Errors 1 | . . . . 1 Matter Fused 4 | . . . . 4 Heat Flow Errors 2 | . . . . 2 Alerts 2 | . . . . 2 Overload Shots . | . . . . . Overflow Damage 42 | . . 8 . 34 Projectiles 29 | . . . . 29 Explosions 8 | . . 8 . . Melee 5 | . . . . 5 Knockbacks 22 | . . . . 22 Impact . | . . . . . Kinetic 20 | . . . . 20 Secondary 2 | . . . . 2 Self-Inflicted Damage 90 | . . 38 2 50 Shots 2 | . . 1 . 1 Rammed 4 | . . 2 1 1 Targets Rammed 4 | . . 2 1 1 Kicked . | . . . . . Crushed . | . . . . . Highest Temperature 401 | 90 174 396 401 339 Average Temperature 97 | 45 62 95 163 97 Received Heat Transfer 1752 | . 141 330 48 1233 Effects 6 | . . 1 . 5 Shutdowns 1 | . . 1 . . Energy Bleed 1 | . . . . 1 Interference 2 | . . . . 2 Short Circuit 1 | . . . . 1 Damage (minor) 1 | . . . . 1 Siege Activations . | . . . . . Robots Corrupted . | . . . . . Combat Hostiles . | . . . . . Parts Fried . | . . . . . Impact Corruptions . | . . . . . Robots Melted . | . . . . . Combat Hostiles . | . . . . . Parts Melted 1 | . . . . 1 Heat Transferred 5921 | 309 190 2685 245 2492 Parts Sabotaged . | . . . . . Parts Stolen . | . . . . . Parts Stripped . | . . . . . Power Chain Reactions 2 | . . 1 . 1 Alert | -11 -10 -9 -9 -8 ------- Run | Yrd Mat Mat Min Mat Peak Influence 815 | 10 164 679 397 815 Initial 257 | . 6 . 257 40 Average 276 | 7 66 263 269 498 Maximum Alert Level 3 | . . 2 1 3 Low Security (%) 48 | 100 100 44 31 13 Level 1 26 | . . 36 68 21 Level 2 21 | . . 19 . 53 Level 3 2 | . . . . 11 Level 4 . | . . . . . Level 5 . | . . . . . High Security . | . . . . . Max Security . | . . . . . Squads Dispatched 15 | . 2 5 1 7 Investigation 6 | . 1 3 . 2 Extermination . | . . . . . Reinforcement 4 | . 1 2 . 1 Assault 4 | . . . 1 3 Garrison 1 | . . . . 1 Intercept . | . . . . . Searches Triggered . | . . . . . Construction Impeded . | . . . . . Haulers Reinforced . | . . . . . Active Scanning Responses . | . . . . . Cargo Convoy Interrupts . | . . . . . Stealth | -11 -10 -9 -9 -8 --------- Run | Yrd Mat Mat Min Mat Distress Signals 7 | . 1 2 . 4 Communications Jammed . | . . . . . Distress Signals . | . . . . . Times Spotted 158 | . 20 56 10 72 Peak Tracking Total 6 | . 4 4 4 6 Tactical Retreats 10 | . . 4 1 5 Traps | -11 -10 -9 -9 -8 ------- Run | Yrd Mat Mat Min Mat Traps Triggered 2 | . . 1 . 1 Indirectly . | . . . . . Trap Hack Attempts . | . . . . . Triggered . | . . . . . Disarmed . | . . . . . Reprogrammed . | . . . . . Reused . | . . . . . Traps Extracted . | . . . . . Installed . | . . . . . Triggered . | . . . . . Machines | -11 -10 -9 -9 -8 ---------- Run | Yrd Mat Mat Min Mat Machines Disabled 2 | . . . . 2 Max in Single Turn 1 | . . . . 1 Machines Repaired . | . . . . . Machines Dismantled . | . . . . . Machines Sabotaged . | . . . . . Overloaded Fab Kills . | . . . . . Hacking | -11 -10 -9 -9 -8 --------- Run | Yrd Mat Mat Min Mat Machines Accessed 28 | . 9 15 . 4 Terminals 20 | . 7 10 . 3 Fabricators . | . . . . . Repair Stations 2 | . 1 1 . . Recycling Units 4 | . 1 2 . 1 Scanalyzers 2 | . . 2 . . Garrison Access . | . . . . . Total Hacks 103 | . 26 62 . 15 Successful 72 | . 13 47 . 12 Failed 31 | . 13 15 . 3 Catastrophic 2 | . . 2 . . Database Lockouts . | . . . . . Manual 75 | . 23 37 . 15 Terminals 69 | . 21 36 . 12 Fabricators . | . . . . . Repair Stations 14 | . 2 12 . . Recycling Units 10 | . 3 4 . 3 Scanalyzers 10 | . . 10 . . Garrison Access . | . . . . . Terminal Hacks 8 | . 1 5 . 2 Robot Analysis 2 | . 1 1 . . Prototype ID Bank 1 | . . 1 . . Level Access Points 1 | . . . . 1 Branch Access Points 1 | . . . . 1 Terminal Index 1 | . . 1 . . Alert Level 1 | . . 1 . . Zone Layout 1 | . . 1 . . Fabricator Hacks . | . . . . . Repair Station Hacks 12 | . 2 10 . . Scan Component 6 | . 1 5 . . Repair 6 | . 1 5 . . Recycling Unit Hacks 2 | . . 2 . . Report Inventory 1 | . . 1 . . Retrieve Components 1 | . . 1 . . Scanalyzer 9 | . . 9 . . Insert Component 4 | . . 4 . . Analyze 5 | . . 5 . . Garrison Access Hacks . | . . . . . Unauthorized Hacks 41 | . 10 21 . 10 Terminals 36 | . 9 19 . 8 Assimilate 12 | . 2 7 . 3 Botnet 19 | . 6 10 . 3 Disrupt 1 | . . 1 . . Operators 3 | . 1 1 . 1 Skim 1 | . . . . 1 Fabricators . | . . . . . Repair Stations . | . . . . . Recycling Units 5 | . 1 2 . 2 Mask 1 | . . . . 1 Tunnel 4 | . 1 2 . 1 Scanalyzers . | . . . . . Garrison Access . | . . . . . Data Cores Recovered . | . . . . . Used . | . . . . . Hacking Detections 27 | . 9 14 . 4 Full Trace Events 1 | . . 1 . . Feedback Events . | . . . . . Feedback Blocked . | . . . . . Robot Schematics Acquired . | . . . . . Robots Built . | . . . . . Authchips . | . . . . . Time . | . . . . . Total Robot Build Rating . | . . . . . Part Schematics Acquired 4 | . . 4 . . Parts Built . | . . . . . Authchips . | . . . . . Time . | . . . . . Total Part Build Rating . | . . . . . Parts Repaired 6 | . 1 5 . . Time 186 | . 26 160 . . Parts Recycled . | . . . . . Recycled Matter . | . . . . . Retrieved Matter . | . . . . . Retrieved Components 7 | . . 7 . . Parts Scanalyzed 4 | . . 4 . . Part Schematics Acquired 4 | . . 4 . . Parts Damaged . | . . . . . Bothacking | -11 -10 -9 -9 -8 ------------ Run | Yrd Mat Mat Min Mat Used RIF Installer . | . . . . . Robots Hacked . | . . . . . Non-combat . | . . . . . Combat . | . . . . . Robot Hacks Applied . | . . . . . Relay Couplers Released . | . . . . . Fabnet Peak Effective % . | . . . . . Robots Rewired . | . . . . . Allies Hacked . | . . . . . Hacks Repelled . | . . . . . Allies | -11 -10 -9 -9 -8 -------- Run | Yrd Mat Mat Min Mat Total Allies 2 | . 1 . 1 . Largest Group 1 | . 1 1 1 . Highest-Rated Group 31 | . 10 10 31 . Highest-Rated Ally 31 | . 10 10 31 . Total Orders 1 | . . 1 . . STAY 1 | . . 1 . . Ally Attacks 7 | . . . 7 . Total Damage 150 | . . . 150 . Kills 3 | . . . 3 . Allies Corrupted . | . . . . . Allies Melted . | . . . . . Intel | -11 -10 -9 -9 -8 ------- Run | Yrd Mat Mat Min Mat Robot Analysis Total 2 | . 1 1 . . Derelict Logs Recovered 3 | . . . 3 . Drone Launches . | . . . . . Drone Recoveries . | . . . . . Exploration | -11 -10 -9 -9 -8 ------------- Run | Yrd Mat Mat Min Mat Turns Passed 8765 | 48 2026 3647 840 2204 Spaces Moved 4426 | 27 928 2005 691 775 Core 33 | . . 1 . 32 Treads 2304 | . 812 1466 . 26 Legs 27 | 27 . . . . Wheels 2060 | . 116 538 691 715 Hover 2 | . . . . 2 Flight . | . . . . . Fastest Speed 100 | 120 100 105 105 105 Average Speed 151 | 120 154 147 105 202 Slowest Speed 1650 | 120 160 550 105 1650 Overloaded Moves . | . . . . . Propulsion Burnouts . | . . . . . Robots Hopped . | . . . . . Cave-ins Triggered . | . . . . . Exploration Rate (%) 67 | 3 95 96 98 43 Regions Visited 4 Branch Regions 1 Pre-discovered Areas 4 | . 1 2 . 1 Known Exits Taken . | . . . . . Unknown Exits Taken 4 | 1 1 1 1 . Scrap Searched 1 | . . . 1 . Spaces Dug 17 | . 13 3 . 1 Terrain Destroyed 52 | . 24 7 . 21 Melee . | . . . . . Projectile 40 | . 20 4 . 16 AOE 12 | . 4 3 . 5 Terrain Rammed . | . . . . . Walls Destroyed . | . . . . . Machines Disabled . | . . . . . Actions | -11 -10 -9 -9 -8 --------- Run | Yrd Mat Mat Min Mat Total 5807 | 32 1358 2512 788 1117 Wait 831 | . 310 323 84 114 Move 4422 | 26 927 2004 690 775 Hop . | . . . . . Pick Up 54 | 1 14 19 2 18 Fast Attach 33 | . 5 17 . 11 Attach 16 | . 1 2 . 13 Detach 3 | . . . . 3 Swap 52 | . 20 19 . 13 Drop 62 | . 11 33 2 16 Fire 318 | 5 70 93 9 141 Melee 12 | . . . . 12 Ram 1 | . . . 1 . Kick . | . . . . . Crush 3 | . . 2 . 1 Escape Stasis . | . . . . . Rewire . | . . . . . Trap . | . . . . . Miscellaneous . | . . . . . Route ------- -11/Scrapyard -10/Materials (discovered 3 exits: *Mat x2 / [*Min]) -9/Materials (discovered 5 exits: *Mat x3 / [*Min x2]) -9/Mines (discovered 2 exits: *Mat x2) -8/Materials (discovered 3 exits: Fac x3) History --------- Turn | Location | Event 11 | -11/Scrapyard | Discovered new exit (range 3) 49 | -11/Scrapyard | Entered Materials 302 | -10/Materials | Discovered new exit (range 10) 314 | -10/Materials | Build established: Mutant 616 | -10/Materials | Discovered new exit (range 8) 715 | -10/Materials | Discovered new exit (range 12) 1329 | -10/Materials | Repaired Lgt. Treads 2075 | -10/Materials | Entered another Materials area 2075 | -9/Materials | Accompanied by 1 ally 2075 | -9/Materials | Evolved 2 slots: Propulsion x2 2367 | -9/Materials | Discovered new exit (range 15) 3005 | -9/Materials | Discovered new exit (range 11) 3110 | -9/Materials | Discovered new exit (range 16) 3673 | -9/Materials | Discovered new exit (range 16) 4426 | -9/Materials | Discovered new exit (range 16) 5209 | -9/Materials | Repaired Imp. Treads? 5252 | -9/Materials | Repaired Spread Laser 5285 | -9/Materials | Repaired Arm. Wheel 5319 | -9/Materials | Repaired Spread Laser 5352 | -9/Materials | Repaired Spread Laser 5722 | -9/Materials | Entered Mines 5768 | -9/Mines | Learned Materials stockpile data 5911 | -9/Mines | Discovered new exit (range 15) 5949 | -9/Mines | Learned Materials terminal intel 6290 | -9/Mines | Learned location of 1 exit from Proximity Caves 6300 | -9/Mines | A weapon hastily lodged in a ceiling crevice suddenly fell to the ground 6339 | -9/Mines | Met a Derelict testing a Signal Generator 6341 | -9/Mines | Discovered new exit (range 5) 6562 | -9/Mines | Entered Materials 6562 | -8/Materials | Evolved 2 slots: Propulsion x1, Utility x1 6564 | -8/Materials | Loaded intel: 12 terminal locations 6677 | -8/Materials | Identified exit to Factory 7603 | -8/Materials | Garrison activated, responded to threat 7695 | -8/Materials | Build established: Scavenger-Mutant 7762 | -8/Materials | First assault squad dispatched 7898 | -8/Materials | Lost 3 parts (1p1n1w) 8163 | -8/Materials | Lost 7 parts (6n1w) 8623 | -8/Materials | Core integrity fell below 50% 8706 | -8/Materials | Core integrity fell below 20% 8766 | -8/Materials | Destroyed by G-47 Trooper with Particle Gun Last Messages --------------- 08696_ Imp. Ion Engine destroyed. 08697_ G-50 Soldier destroyed. 08697_ K-01 Serf collects debris. 08698_ Critical hit (Burn: +37). 08700_ K-01 Serf collects debris. 08709_ Destroyed Lgt. Nuclear Core. 08712_ G-47 Trooper destroyed. 08716_ R-06 Scavenger collects Assault Cannon. 08717_ G-47 Trooper knocked back. 08719_ R-06 Scavenger collects Lgt. Angular Momentum Engine. 08723_ G-47 Trooper knocked back. 08727_ K-01 Serf collects debris. 08729_ G-47 Trooper destroyed. 08733_ K-01 Serf collects debris. 08736_ Acquired 60 matter. 08737_ K-01 Serf collects debris. 08746_ U-05 Engineer builds a Door. 08762_ G-47 Trooper suffers critical hit (Burn). 08762_ G-47 Trooper destroyed. 08762_ K-01 Serf collects debris. Map ----- +----------------------------------------------------+ | ??????????????????????????????"""???????????????# | | ??????????????????????????????"T"???????????????# | | ????????????????????????????????????????????????# | | ???????????????##########???????????????????????# | | ???????????????# #???????????????????????# | | ?????????????? # +???????????????????????# | | ????????????? # #???????????????????????# | | ????????????]]]# #???????????????????????# | | ???????#????]]]# #???????????????????????## | | ???????# ?? ]]]# ! #????????????????????????? | | ???????# ?# #????????????????????????? | | ???????? ???? #????????????????????????? | | ???????? ????? ??????????????????????????? | | #############+######+####????????????????????????? | | % #######??????????????????? | | % % % % + * #????????????? | | % %### ####+#######?? | | ####### ############# #?????? """?# #?? | | ??????# #?##????????# #???????????+ #?? | | ??????# #???????????# #???????????# #?? | | ??????# #???????????# #???????????#/###### #?? | | ??????#o #???????????# #???????????#%""" # = #?? | | ??????# #???????????# #???????????# "T # #?? | | ??????# #???????????#%#??########## " " #| [### | | ??""?? ??????????##k#### = # #%[[ | | ??""?? ?????????#; g@%u%% """ # %+*= ![ | | ??T"?# T ?????????####### ! """ # [#=! [[ | | ??""?# ??????????????# """%#% =# ### | | ??""?# !?????????????# +=! # %[#?? | | ?????# #####?????????????# """ #=! ! # !#?? | | ?????# #?????????????????#!!/ """ #= # #?? | | ?????# #?????????????????#!// """ # !% # !#?? | | ?????# ??????????????????#!/ #### ### !#?? | | ?????# ??????????????????#####+####??##### %##? | | ?????# ?????????????????????????????????# ## | | ?????? ???????????????????????????????????# | | ??????????????????????????????????????????# T | | ??????????????????????????????????????????# | | ??????????????????????????????????????????#! ## | | ??????????????????????????????????????????######## | | ?????????????????????????????????????????????# ! | | ?????????????????????????????????????????????# | | ?????????????????????????????????????????????# !! | | ?????????????????????????????????????????????# !! | | ?????????????????????????????????????????????? | | ???????????????????????????????????????????????? | | ???????????????????????????????????????????????### | | ???????????????????????????????????????????????# | | ???????????????????????????????????????????????# # | | ???????????????????????????????????????????????# ? | +----------------------------------------------------+ Best States ------------- Heat Dissipation 50 Energy Generation 18 Energy Capacity 280 Matter Stores 300 Matter Capacity 300 Sight Range 16 Terrain Scan Density 10 Evasion (%) 55 Targeting Accuracy 12 Recoil Reduction 4 Offensive Hacking 10 Item Schematics ----------------- Hacking Suite | -9/Materials | Scanalyzed Imp. Flight Unit | -9/Materials | Scanalyzed Spread Laser | -9/Materials | Scanalyzed Imp. Targeting Computer | -9/Materials | Scanalyzed Robot Schematics ------------------ None Fabricated ------------ Nothing Alien Tech Used ----------------- None Achievements -------------- None Challenges ------------ None Game ------ Seed ActiveSpliceSabre Manual? 0 Play Time 01:00:49 Cumulative 60.9 hours Start 2024.11.12 @ 12:01:22 End 2024.11.12 @ 13:00:09 Sessions 3 Manual Loads 0 Difficulty Rogue Special Mode None Game No. 108 Rogue 108 Adventurer 0 Explorer 0 Win Type - Total 0 Types 0/0/0/0/0/0/0/0/0 Lore% 39 Gallery% 34 Achievement% 34 Wizard Run 0 Options --------- Layout 0 ASCII 0 Keyboard 0 Movement Mouse Keybinds 0 Fullscreen 1 Font 24/Smallcaps Map View 91x25 Zoom Use 77% Tactical HUD 1 Map Filters NONE Filters NONE Steam 1 RUN: a9401f98-68ab-4702-aa5e-295134a81d06